bitfinex-derivatives/quotes_ETHF0:USTF0_20260118
["timestamp","ask_amount","ask_price","bid_price","bid_amount"]
[1768753704047,0.92278014,3334.1,3332.9,0.96139001]
[1768753704242,0.96139001,3334.2,3332.9,0.96139001]
[1768753704442,0.92280744,3334.1,3332.9,0.96139001]
[1768753704641,0.96139001,3334.2,3332.9,0.96139001]
[1768753704841,0.92280849,3334.1,3332.9,0.96139001]
[1768753705047,0.96139001,3334.2,3332.9,0.96139001]
[1768753705247,0.92280847,3334.1,3332.9,0.96139001]
[1768753705438,0.96139001,3334.2,3332.9,0.96139001]
[1768753705642,0.92285037,3334.1,3332.9,0.96139001]
[1768753705843,0.96139001,3334.2,3332.9,0.96139001]
[1768753706043,0.92284984,3334.1,3332.9,0.96139001]
[1768753706242,0.96139001,3334.2,3332.9,0.96139001]
[1768753706446,0.92297038,3334.1,3332.9,0.96139001]
[1768753706650,0.96139001,3334.2,3332.9,0.96139001]
[1768753706951,0.92297043,3334.1,3332.9,0.96139001]
[1768753707152,0.96139001,3334.2,3332.9,0.96139001]
[1768753707351,0.92307643,3334.1,3332.9,0.96139001]
[1768753707656,0.96139001,3334.2,3332.7,0.96139001]
[1768753707856,0.92311642,3334.1,3332.7,0.96139001]
[1768753708055,0.96139001,3334.2,3332.7,0.96139001]
[1768753708255,0.9232516,3334.1,3332.7,0.96139001]
[1768753708455,0.9232516,3334.0,3332.7,0.96139001]
[1768753708659,0.96139001,3334.2,3332.7,0.96139001]
[1768753708948,0.92329389,3334.1,3332.7,1.52583245]
[1768753709154,0.92329389,3334.0,3332.7,1.52583245]
[1768753709356,0.96139001,3334.2,3332.7,1.52583245]
[1768753709554,0.9235061,3334.1,3332.7,1.52583245]
[1768753709852,0.9235061,3334.0,3332.7,1.52583245]
[1768753710153,0.96139001,3334.2,3332.7,1.52583245]
[1768753710358,0.92350441,3334.1,3332.7,1.52583245]
[1768753710551,0.92350441,3334.0,3332.7,1.52583245]
[1768753710751,0.96139001,3334.2,3332.7,1.52583245]
[1768753710949,0.92354359,3334.1,3332.7,1.52583245]
[1768753711253,0.92354359,3334.0,3332.7,1.52583245]
[1768753711560,0.96139001,3334.2,3332.7,1.52583245]
[1768753711749,0.92375398,3334.1,3332.7,1.52583245]
[1768753711947,0.92375398,3334.0,3332.7,1.52583245]
[1768753712147,0.96139001,3334.2,3332.7,1.52583245]
[1768753712454,0.92375157,3334.1,3332.7,1.52583245]
[1768753712655,0.92375157,3334.0,3332.7,1.52583245]
[1768753712856,0.96139001,3334.2,3332.7,1.52583245]
[1768753713044,0.92399366,3334.1,3332.7,1.52583245]
[1768753713245,0.92399366,3334.0,3332.7,1.52583245]
[1768753713443,0.92399366,3333.9,3332.7,1.52583245]
[1768753713644,0.96139001,3334.2,3332.7,1.52583245]
[1768753713858,0.9242945,3334.1,3332.7,1.52583245]
[1768753714054,0.9242945,3334.0,3332.7,1.52583245]
[1768753714251,0.9242945,3333.9,3332.7,1.52583245]
[1768753714457,0.96139001,3334.2,3332.7,1.52583245]
[1768753714657,0.92467831,3334.1,3332.7,1.52583245]
[1768753714958,0.92467831,3334.0,3332.7,1.52583245]
[1768753715156,0.96139001,3334.2,3332.7,1.52583245]
[1768753715157,0.92467831,3333.9,3332.7,1.52583245]
[1768753715357,0.92467831,3333.8,3332.8,0.96139001]
[1768753715556,0.96139001,3334.2,3332.8,0.96139001]
[1768753715759,0.92523078,3334.1,3332.8,0.96139001]
[1768753715961,0.92523078,3334.0,3332.8,0.96139001]
[1768753716152,0.92523078,3333.9,3332.8,0.96139001]
[1768753716352,0.92523078,3333.8,3332.8,0.96139001]
[1768753716661,0.96139001,3334.2,3332.8,0.96139001]
[1768753716960,0.92554971,3334.1,3332.8,0.96139001]
[1768753717145,0.92554971,3334.0,3332.8,0.96139001]
[1768753717343,0.92554971,3333.9,3332.8,0.96139001]
[1768753717548,0.92554971,3333.8,3332.8,0.96139001]
[1768753717745,0.92554971,3333.7,3332.8,0.96139001]
[1768753718061,0.96139001,3334.2,3332.8,0.96139001]
[1768753718261,0.92621192,3334.1,3332.8,0.96139001]
[1768753718452,0.96139001,3333.8,3332.2,0.5476044]
[1768753718762,0.92621192,3333.7,3332.3,0.96139001]
[1768753719263,0.92621192,3333.7,3332.3,1.50899441]
[1768753722759,0.92621192,3333.7,3332.4,0.5476044]
[1768753722962,0.92621192,3333.7,3332.6,0.96139001]
[1768753723168,0.92621192,3333.6,3332.6,0.96139001]
[1768753723463,1.5019237,3334.1,3332.6,0.96139001]
[1768753723662,0.92621887,3334.0,3332.6,0.96139001]
[1768753723855,0.92621887,3333.9,3332.6,0.96139001]
[1768753724154,0.92621887,3333.8,3332.6,0.96139001]
[1768753724349,0.92621887,3333.7,3332.6,0.96139001]
[1768753724549,0.92621887,3333.6,3332.6,0.96139001]
[1768753724765,1.5019237,3334.1,3332.6,0.96139001]
[1768753724962,0.92423156,3334.0,3333.0,0.96139001]
[1768753725164,0.92423156,3333.9,3333.0,1.50899441]
[1768753725374,0.92423156,3333.8,3333.0,1.50899441]
[1768753725663,0.92423156,3333.7,3333.0,1.50899441]
[1768753725867,1.61788959,3334.3,3333.0,1.50899441]
[1768753726050,2.54214257,3334.3,3333.0,1.50899441]
[1768753726768,0.92425298,3334.2,3333.0,1.50899441]
[1768753726965,0.92425298,3334.1,3333.0,1.50899441]
[1768753727165,0.92425298,3334.0,3333.0,1.50899441]
[1768753727357,0.92425298,3333.9,3333.0,1.50899441]
[1768753727559,0.92425298,3333.8,3333.0,1.50899441]
[1768753727856,0.92425298,3333.7,3333.0,1.50899441]
[1768753728056,1.61788959,3334.3,3333.0,1.50899441]
[1768753728357,2.54243344,3334.3,3333.0,1.50899441]
[1768753728855,0.92454385,3334.2,3333.0,1.50899441]
[1768753729061,0.92454385,3334.1,3333.2,0.96139001]
[1768753729260,0.92454385,3334.0,3333.2,0.96139001]
[1768753729465,0.92454385,3333.9,3333.2,0.96139001]
[1768753729668,2.63139001,3334.4,3333.2,0.96139001]
[1768753729865,0.92456934,3334.3,3333.2,0.96139001]
[1768753730069,0.92456934,3334.2,3333.2,0.96139001]
[1768753730262,0.92456934,3334.1,3333.2,0.96139001]
[1768753730563,0.92456934,3334.0,3333.0,1.50899441]
[1768753730766,0.92456934,3333.9,3333.0,1.50899441]
[1768753730968,2.63139001,3334.4,3333.0,1.50899441]
[1768753731165,0.92452096,3334.3,3333.0,1.50899441]
[1768753731368,0.92452096,3334.2,3333.0,1.50899441]
[1768753731666,2.63139001,3334.4,3333.0,1.50899441]
[1768753731667,0.92452096,3334.1,3333.0,1.50899441]
[1768753731869,0.92452096,3334.0,3333.0,1.50899441]
[1768753732166,0.92452096,3333.9,3333.0,1.50899441]
[1768753732366,2.63139001,3334.4,3333.0,1.50899441]
[1768753732566,0.92458251,3334.3,3333.0,1.50899441]
[1768753732768,0.92458251,3334.2,3333.0,1.50899441]
[1768753732959,0.92458251,3334.1,3333.0,1.50899441]
[1768753733159,0.92458251,3334.0,3333.0,1.50899441]
[1768753733460,0.92458251,3333.9,3333.0,1.50899441]
[1768753733768,0.96139001,3334.2,3333.0,0.5476044]
[1768753733969,0.92455252,3334.1,3332.8,0.96139001]
[1768753734261,0.92455252,3334.0,3332.8,0.96139001]
[1768753734465,0.92455252,3333.9,3332.8,0.96139001]
[1768753734670,0.96139001,3334.2,3332.8,0.96139001]
[1768753734870,0.92451726,3334.1,3332.8,0.96139001]
[1768753735061,0.92451726,3334.0,3332.8,0.96139001]
[1768753735370,0.92451726,3333.9,3332.8,0.96139001]
[1768753735559,0.96139001,3334.2,3332.8,0.96139001]
[1768753735854,0.92449174,3334.1,3332.8,0.96139001]
[1768753736057,0.92449174,3334.0,3332.8,0.96139001]
[1768753736254,0.92449174,3333.9,3332.8,0.96139001]
[1768753736453,0.96139001,3334.2,3332.8,0.96139001]
[1768753736652,0.92446772,3334.1,3332.8,0.96139001]
[1768753736864,0.96139001,3333.9,3332.6,0.56238299]
[1768753738573,0.96139001,3333.9,3332.4,0.15009]
[1768753738763,0.96139001,3333.9,3332.5,0.96139001]
[1768753738963,0.56313435,3334.0,3332.4,0.15009]
[1768753739159,0.92443909,3333.9,3332.4,0.15009]
[1768753739365,0.56313435,3334.0,3332.4,0.15009]
[1768753739564,0.92443256,3333.9,3332.4,0.15009]
[1768753739764,0.92443256,3333.8,3332.4,0.15009]
[1768753739967,0.56313435,3334.0,3332.4,0.15009]
[1768753740260,0.92442483,3333.9,3332.4,0.15009]
[1768753740465,0.92442483,3333.8,3332.4,0.15009]
[1768753740669,0.56313435,3334.0,3332.4,0.15009]
[1768753740871,0.9244061,3333.9,3332.4,0.15009]
[1768753741073,0.9244061,3333.8,3332.4,0.71247299]
[1768753741273,0.56313435,3334.0,3332.4,0.71247299]
[1768753741476,0.92441893,3333.9,3332.5,0.56238299]
[1768753741668,2.18102394,3334.4,3332.6,0.56238299]
[1768753741869,2.59441875,3334.3,3332.6,0.56238299]
[1768753742069,0.92441875,3334.2,3332.6,0.56238299]
[1768753745781,0.92441875,3334.1,3332.6,0.56238299]
[1768753745973,0.92441875,3334.0,3332.6,0.56238299]
[1768753746275,0.92441875,3333.9,3333.0,0.56238299]
[1768753746586,1.67,3334.4,3333.0,0.56238299]
[1768753746778,0.92436926,3334.3,3333.0,0.56238299]
[1768753747083,0.92436926,3334.2,3333.0,0.56238299]
[1768753747272,0.92436926,3334.1,3333.0,0.56238299]
[1768753747469,1.67,3334.4,3333.0,0.56238299]
[1768753747470,0.92436926,3334.0,3333.0,0.56238299]
[1768753747673,0.92436926,3333.9,3333.0,0.56238299]
[1768753747878,1.67,3334.4,3333.0,0.56238299]
[1768753748179,0.92437634,3334.3,3333.0,0.56238299]
[1768753748479,0.92437634,3334.2,3333.0,0.56238299]
[1768753748779,0.92437634,3334.1,3333.0,0.56238299]
[1768753748976,0.92437634,3334.0,3333.0,0.56238299]
[1768753749183,0.92437634,3333.9,3333.0,0.56238299]
[1768753749381,1.67,3334.4,3333.0,0.56238299]
[1768753749582,0.92442127,3334.3,3333.0,0.56238299]
[1768753749781,0.92442127,3334.2,3333.0,0.56238299]
[1768753750075,1.76788959,3334.5,3333.0,0.56238299]
[1768753750076,0.92442127,3334.1,3333.0,0.56238299]
[1768753750280,0.92442127,3334.0,3333.0,0.56238299]
[1768753750481,0.92442127,3333.9,3333.0,0.56238299]
[1768753750679,4.00102394,3334.5,3333.0,0.56238299]
[1768753750881,0.92450204,3334.4,3333.0,0.56238299]
[1768753751184,0.92450204,3334.3,3333.0,0.56238299]
[1768753751482,0.92450204,3334.2,3333.0,0.56238299]
[1768753751780,0.92450204,3334.1,3333.0,0.56238299]
[1768753751981,0.92450204,3334.0,3333.0,0.56238299]
[1768753752184,0.92450204,3333.9,3333.0,0.56238299]
[1768753752381,4.00102394,3334.5,3333.0,0.56238299]
[1768753752582,0.92469333,3334.4,3333.0,0.56238299]
[1768753752785,0.92469333,3334.3,3333.0,0.56238299]
[1768753753083,0.92469333,3334.2,3333.0,0.56238299]
[1768753753284,0.92469333,3334.1,3333.0,0.56238299]
[1768753753484,0.92469333,3334.0,3333.0,0.56238299]
[1768753753678,0.92469333,3333.9,3333.0,0.56238299]
[1768753753983,4.00102394,3334.5,3333.0,0.56238299]
[1768753754182,0.92479549,3334.4,3333.0,0.56238299]
[1768753754378,0.92479549,3334.3,3333.0,0.56238299]
[1768753754689,0.92479549,3334.2,3333.0,0.56238299]
[1768753754885,0.92479549,3334.1,3333.0,0.56238299]
[1768753755187,0.92479549,3334.0,3333.0,0.56238299]
[1768753755394,0.92479549,3333.9,3333.0,0.56238299]
[1768753755595,1.67,3334.4,3333.0,0.56238299]
[1768753755796,0.92440741,3334.3,3333.0,0.56238299]
[1768753755994,0.92440741,3334.2,3333.0,0.56238299]
[1768753756195,0.92440741,3334.1,3333.0,0.56238299]
[1768753756396,0.92440741,3334.0,3333.0,0.56238299]
[1768753756692,0.92440741,3333.9,3333.0,0.56238299]
[1768753756894,3.28788959,3334.4,3333.0,0.56238299]
[1768753757096,0.92446719,3334.3,3333.0,0.56238299]
[1768753757298,0.92446719,3334.2,3333.0,0.56238299]
[1768753757497,0.92446719,3334.1,3333.0,0.56238299]
[1768753757794,0.92446719,3334.0,3333.0,0.56238299]
[1768753757995,0.92446719,3333.9,3333.0,0.56238299]
[1768753758194,3.28788959,3334.4,3333.0,0.56238299]
[1768753758386,0.9246637,3334.3,3333.0,0.56238299]
[1768753758582,0.9246637,3334.2,3333.0,0.56238299]
[1768753758794,0.9246637,3334.1,3333.0,0.56238299]
[1768753758994,0.9246637,3334.0,3333.0,0.56238299]
[1768753759196,0.9246637,3333.9,3333.0,0.56238299]
[1768753759396,3.28788959,3334.4,3333.0,0.56238299]
[1768753759597,0.92466015,3334.3,3333.0,0.56238299]
[1768753759800,0.92466015,3334.2,3333.0,0.56238299]
[1768753760096,0.92466015,3334.1,3333.0,0.56238299]
[1768753760395,0.92466015,3334.0,3333.0,0.56238299]
[1768753760595,0.92466015,3333.9,3333.0,0.56238299]
[1768753760796,3.28788959,3334.4,3333.0,0.56238299]
[1768753760997,0.92455031,3334.3,3333.0,0.56238299]
[1768753761292,0.92455031,3334.2,3333.0,0.56238299]
[1768753761499,0.92455031,3334.1,3333.0,0.56238299]
[1768753761695,0.92455031,3334.0,3333.0,0.56238299]
[1768753761994,0.92455031,3333.9,3333.0,0.56238299]
[1768753762194,3.28788959,3334.4,3333.0,0.56238299]
[1768753762495,0.92435257,3334.3,3333.0,0.56238299]
[1768753762693,0.92435257,3334.2,3333.0,0.56238299]
[1768753762885,0.92435257,3334.1,3333.0,0.56238299]
[1768753763087,0.92435257,3334.0,3333.0,0.56238299]
[1768753763291,0.92435257,3333.9,3333.0,0.56238299]
[1768753763491,3.28788959,3334.4,3333.0,0.56238299]
[1768753763693,0.92411829,3334.3,3333.0,0.56238299]
[1768753763893,0.92411829,3334.2,3333.0,0.56238299]
[1768753764193,0.92411829,3334.1,3333.0,0.56238299]
[1768753764393,0.92411829,3334.0,3333.0,0.56238299]
[1768753764601,0.92411829,3333.9,3333.0,0.56238299]
[1768753764803,3.28788959,3334.4,3333.0,0.56238299]
[1768753765002,0.92411326,3334.3,3333.0,0.56238299]
[1768753765199,0.92411326,3334.2,3333.0,0.56238299]
[1768753765501,0.92411326,3334.1,3333.0,0.56238299]
[1768753765798,0.92411326,3334.0,3333.0,0.56238299]
[1768753765992,0.92411326,3333.9,3333.0,0.56238299]
[1768753766195,3.28788959,3334.4,3333.0,0.56238299]
[1768753766394,0.92410852,3334.3,3333.0,0.56238299]
[1768753766594,0.92410852,3334.2,3333.0,0.56238299]
[1768753766793,0.92410852,3334.1,3333.0,0.56238299]
[1768753766994,0.92410852,3334.0,3333.0,0.56238299]
[1768753767196,0.92410852,3333.9,3333.0,0.56238299]
[1768753767496,3.28788959,3334.4,3333.0,0.56238299]
[1768753767696,0.92411893,3334.3,3333.0,0.56238299]
[1768753767994,0.92411893,3334.2,3333.0,0.56238299]
[1768753768195,0.92411893,3334.1,3333.0,0.56238299]
[1768753768399,0.92411893,3334.0,3333.0,0.56238299]
[1768753768598,0.92411893,3333.9,3333.0,0.56238299]
[1768753768898,3.28788959,3334.4,3333.0,0.56238299]
[1768753769097,0.92413262,3334.3,3333.0,0.56238299]
[1768753769300,0.92413262,3334.2,3333.0,0.56238299]
[1768753769499,0.92413262,3334.1,3333.0,0.56238299]
[1768753769702,0.92413262,3334.0,3333.0,0.56238299]
[1768753769905,0.92413262,3333.9,3333.0,0.56238299]
[1768753770203,3.28788959,3334.4,3333.0,0.56238299]
[1768753770390,0.92430617,3334.3,3333.0,0.56238299]
[1768753770595,0.92430617,3334.2,3333.0,0.56238299]
[1768753770803,0.92430617,3334.1,3333.0,0.56238299]
[1768753771002,0.92430617,3334.0,3333.0,0.56238299]
[1768753771203,0.92430617,3333.9,3333.0,0.56238299]
[1768753771391,3.28788959,3334.4,3333.0,0.56238299]
[1768753771592,0.92455989,3334.3,3333.0,0.56238299]
[1768753771805,0.92455989,3334.2,3333.0,0.56238299]
[1768753772005,0.92455989,3334.1,3333.0,0.56238299]
[1768753772206,0.92455989,3334.0,3333.0,0.56238299]
[1768753772406,0.92455989,3333.9,3333.0,0.56238299]
[1768753772708,3.28788959,3334.4,3333.0,0.56238299]
[1768753772908,0.92456912,3334.3,3333.0,0.56238299]
[1768753773205,0.92456912,3334.2,3333.0,0.56238299]
[1768753773395,0.92456912,3334.1,3333.0,0.56238299]
[1768753773596,0.92456912,3334.0,3333.0,0.56238299]
[1768753773793,0.92456912,3333.9,3333.0,0.56238299]
[1768753774007,3.28788959,3334.4,3333.0,0.56238299]
[1768753774197,0.92463723,3334.3,3333.0,0.56238299]
[1768753774393,0.92463723,3334.2,3333.0,0.56238299]
[1768753774597,0.92463723,3334.1,3333.0,0.56238299]
[1768753774796,0.92463723,3334.0,3333.0,0.56238299]
[1768753775093,0.92463723,3333.9,3333.0,0.56238299]
[1768753775298,3.28788959,3334.4,3333.0,0.56238299]
[1768753775506,0.92465588,3334.3,3333.0,0.56238299]
[1768753775709,0.92465588,3334.2,3333.0,0.56238299]
[1768753775908,0.92465588,3334.1,3333.0,0.56238299]
[1768753776208,0.92465588,3334.0,3333.0,0.56238299]
[1768753776508,0.92465588,3333.9,3333.0,0.56238299]
[1768753776707,3.28788959,3334.4,3333.0,0.56238299]
[1768753777008,0.92465979,3334.3,3333.0,0.56238299]
[1768753777305,0.92465979,3334.2,3333.0,0.56238299]
[1768753777501,0.92465979,3334.1,3333.0,0.56238299]
[1768753777705,0.92465979,3334.0,3333.0,0.56238299]
[1768753777899,0.92465979,3333.9,3333.0,0.56238299]
[1768753778100,3.28788959,3334.4,3333.0,0.56238299]
[1768753778300,0.92465716,3334.3,3333.0,0.56238299]
[1768753778599,0.92465716,3334.2,3333.0,0.56238299]
[1768753778801,0.92465716,3334.1,3333.0,0.56238299]
[1768753779006,0.92465716,3334.0,3333.0,0.56238299]
[1768753779194,0.92465716,3333.9,3333.0,0.56238299]
[1768753779394,3.28788959,3334.4,3333.0,0.56238299]
[1768753779610,0.92465716,3334.3,3333.0,0.56238299]
[1768753779801,0.92465716,3334.2,3333.0,0.56238299]
[1768753780001,0.92465716,3334.1,3333.0,0.56238299]
[1768753780202,0.92465811,3334.0,3333.0,0.56238299]
[1768753780404,0.92465811,3333.9,3333.0,0.56238299]
[1768753780599,3.28788959,3334.4,3333.0,0.56238299]
[1768753780799,0.92484228,3334.3,3333.0,0.56238299]
[1768753781000,0.92484228,3334.2,3333.0,0.56238299]
[1768753781201,0.92484228,3334.1,3333.0,0.56238299]
[1768753781400,0.92484228,3334.0,3333.0,0.56238299]
[1768753781602,0.92484228,3333.9,3333.0,0.56238299]
[1768753781802,1.61788959,3334.4,3333.0,0.56238299]
[1768753782102,2.54275985,3334.4,3333.0,0.56238299]
[1768753784206,0.92487026,3334.3,3333.0,0.56238299]
[1768753784407,0.92487026,3334.2,3333.0,0.56238299]
[1768753784604,0.92487026,3334.1,3333.0,0.56238299]
[1768753784805,0.92487026,3334.0,3333.0,0.56238299]
[1768753785100,0.92487026,3333.9,3333.0,0.56238299]
[1768753785305,1.61788959,3334.4,3333.0,0.56238299]
[1768753796720,0.56019083,3334.3,3332.0,0.55685261]
[1768753796925,1.52111485,3334.0,3332.2,0.1501]
[1768753797127,1.48398872,3333.9,3332.2,0.1501]
[1768753797320,0.92379789,3333.8,3332.2,0.1501]
[1768753797523,0.92379789,3333.7,3332.2,0.1501]
[1768753797725,0.92379789,3333.6,3332.2,0.1501]
[1768753797922,0.56019083,3333.9,3332.2,0.1501]
[1768753798226,0.93195335,3333.8,3332.2,0.1501]
[1768753798427,0.93195335,3333.7,3332.2,0.1501]
[1768753798731,0.93195335,3333.6,3332.2,0.1501]
[1768753798925,0.56019083,3333.9,3332.2,0.1501]
[1768753799123,0.93176009,3333.8,3332.2,0.1501]
[1768753799423,0.93176009,3333.7,3332.2,0.1501]
[1768753799625,0.93176009,3333.6,3332.2,0.1501]
[1768753799929,0.56019083,3333.9,3332.2,0.1501]
[1768753800129,0.56019083,3333.7,3332.2,0.1501]
[1768753800315,0.93160577,3333.6,3332.2,0.70695261]
[1768753800927,0.56019083,3333.5,3331.7,0.55685261]
[1768753801130,0.96124298,3333.1,3331.7,1.51809559]
[1768753801433,0.96124298,3333.3,3331.9,0.96124298]
[1768753801738,1.67,3333.6,3332.3,0.96124298]
[1768753801931,0.93109444,3333.5,3332.3,0.96124298]
[1768753802238,0.93109444,3333.4,3332.5,0.96124298]
[1768753802417,0.56019083,3333.9,3332.7,0.96124298]
[1768753802618,0.93082261,3333.8,3333.1,0.96124298]
[1768753802830,4.8093234,3334.3,3332.9,0.96124298]
[1768753803130,0.93094947,3334.2,3332.9,0.96124298]
[1768753803330,4.8093234,3334.3,3332.9,0.96124298]
[1768753803331,0.93094947,3334.1,3332.9,0.96124298]
[1768753803522,0.93094947,3334.0,3332.9,0.96124298]
[1768753803724,0.93094947,3333.9,3332.9,0.96124298]
[1768753804032,0.93094947,3333.8,3332.9,0.96124298]
[1768753804229,3.19143381,3334.3,3332.9,0.96124298]
[1768753804529,0.93092927,3334.2,3332.9,0.96124298]
[1768753804729,0.93092927,3334.1,3332.9,0.96124298]
[1768753805034,0.93092927,3334.0,3332.9,0.96124298]
[1768753805218,0.93092927,3333.9,3332.9,0.96124298]
[1768753805422,0.93092927,3333.8,3332.9,0.96124298]
[1768753805624,3.19143381,3334.3,3332.9,0.96124298]
[1768753805824,0.93092876,3334.2,3332.9,0.96124298]
[1768753806131,1.89217174,3334.1,3332.7,0.96124298]
[1768753806322,0.93092876,3334.0,3332.7,0.96124298]
[1768753807832,0.93092876,3334.0,3332.9,0.96124298]
[1768753808135,0.93092876,3333.9,3332.9,0.96124298]
[1768753808337,0.56019083,3334.3,3332.9,0.96124298]
[1768753808627,1.89214345,3334.2,3332.9,0.96124298]
[1768753808828,0.93090047,3334.1,3332.9,0.96124298]
[1768753819127,0.93090047,3334.1,3333.3,0.96124298]
[1768753819332,1.67,3334.4,3333.3,0.96124298]
[1768753819532,0.93011325,3334.3,3333.3,0.96124298]
[1768753819732,0.93011325,3334.2,3333.3,0.96124298]
[1768753820040,0.93011325,3334.1,3333.3,0.96124298]
[1768753820242,2.63124298,3334.6,3333.3,0.96124298]
[1768753820437,0.93007828,3334.5,3333.3,1.51809559]
[1768753820634,0.93007828,3334.4,3333.3,1.51809559]
[1768753820833,0.93007828,3334.3,3333.3,1.51809559]
[1768753821032,2.63124298,3334.6,3333.3,1.51809559]
[1768753821236,0.93005687,3334.5,3333.3,1.51809559]
[1768753821435,0.93005687,3334.4,3333.3,1.51809559]
[1768753821639,0.93005687,3334.3,3333.3,1.51809559]
[1768753821840,2.63124298,3334.6,3333.3,1.51809559]
[1768753822147,0.93005202,3334.5,3333.3,0.55685261]
[1768753822330,0.93005202,3334.4,3333.3,0.55685261]
[1768753822535,0.93005202,3334.3,3333.3,0.55685261]
[1768753822735,0.96124298,3334.4,3333.3,0.55685261]
[1768753822936,0.9299448,3334.3,3333.3,0.55685261]
[1768753823145,0.96124298,3334.4,3333.3,0.55685261]
[1768753823444,0.92987952,3334.3,3333.3,0.55685261]
[1768753823644,0.96124298,3334.4,3333.3,0.55685261]
[1768753823833,0.92984721,3334.3,3333.3,0.55685261]
[1768753824038,0.96124298,3334.4,3333.3,0.55685261]
[1768753824240,0.9297912,3334.3,3333.3,0.55685261]
[1768753824439,0.96124298,3334.4,3333.3,0.55685261]
[1768753824652,0.9297595,3334.3,3332.9,0.96124298]
[1768753824838,0.96124298,3334.4,3332.9,0.96124298]
[1768753825133,0.92976033,3334.3,3332.9,0.96124298]
[1768753825338,0.96124298,3334.4,3332.9,0.96124298]
[1768753825638,0.92968676,3334.3,3332.9,0.96124298]
[1768753825837,0.96124298,3334.4,3332.9,0.96124298]
[1768753826041,0.92973786,3334.3,3332.9,1.5147105]
[1768753826349,0.96124298,3334.4,3332.9,1.5147105]
[1768753826552,0.92966081,3334.3,3332.9,1.5147105]
[1768753826743,0.96124298,3334.4,3332.9,1.5147105]
[1768753826946,0.92966147,3334.3,3332.9,1.5147105]
[1768753827135,0.96124298,3334.4,3332.9,1.5147105]
[1768753827549,2.1993514,3334.6,3332.9,1.5147105]
[1768753827751,0.96124298,3334.3,3332.9,1.5147105]
[1768753828247,0.96124298,3334.1,3332.9,0.55346752]
[1768753833048,0.96124298,3334.1,3332.8,0.15007]
[1768753833254,0.96124298,3333.9,3332.8,0.15007]
[1768753836159,0.96124298,3333.6,3332.5,0.55346752]
[1768753837354,0.96124298,3333.3,3332.1,0.69359959]
[1768753843170,0.96124298,3333.3,3332.1,0.1501]
[1768753853862,0.96124298,3333.0,3332.1,0.1501]
[1768753854463,0.96124298,3333.0,3331.7,0.54349959]
[1768753854669,0.96124298,3333.0,3331.5,0.96124298]
[1768753858770,0.96124298,3332.9,3331.5,0.96124298]
[1768753858977,0.96124298,3332.9,3331.5,1.52811153]
[1768753860077,0.96124298,3332.9,3331.5,0.56686855]
[1768753860278,0.96124298,3333.0,3331.6,0.96124298]
[1768753860879,0.54295563,3333.3,3331.5,0.56686855]
[1768753861080,0.93064046,3333.2,3331.5,0.56686855]
[1768753861278,0.93065168,3333.1,3331.5,0.56686855]
[1768753861578,0.54295563,3333.3,3331.5,0.56686855]
[1768753861780,1.47360573,3333.2,3331.5,0.56686855]
[1768753861978,0.9306501,3333.1,3331.5,0.56686855]
[1768753862278,0.54295563,3333.2,3331.5,0.56686855]
[1768753862478,0.93070352,3333.1,3331.5,0.56686855]
[1768753862677,0.54295563,3333.2,3331.5,0.56686855]
[1768753862879,0.93070354,3333.1,3331.5,0.56686855]
[1768753863078,0.54295563,3333.2,3331.5,0.56686855]
[1768753863279,0.93087385,3333.1,3331.5,0.56686855]
[1768753863480,0.54295563,3333.2,3331.5,0.56686855]
[1768753863781,0.93080513,3333.1,3331.5,0.56686855]
[1768753863982,0.54295563,3333.2,3331.5,0.56686855]
[1768753864180,0.93078968,3333.1,3331.5,0.56686855]
[1768753864383,0.54295563,3333.2,3331.5,0.56686855]
[1768753864681,0.93088101,3333.1,3331.5,0.56686855]
[1768753864882,0.54295563,3333.2,3331.5,0.56686855]
[1768753865085,0.93089356,3333.1,3331.5,0.56686855]
[1768753865382,0.54295563,3333.2,3331.5,0.56686855]
[1768753865582,0.93103261,3333.1,3331.5,0.56686855]
[1768753865778,0.54295563,3333.2,3331.5,0.56686855]
[1768753865984,0.9310326,3333.1,3331.5,0.56686855]
[1768753866185,0.54295563,3333.2,3331.5,0.56686855]
[1768753866385,0.9311151,3333.1,3331.5,0.56686855]
[1768753866585,0.54295563,3333.2,3331.5,0.56686855]
[1768753866787,0.93111837,3333.1,3331.5,0.56686855]
[1768753867085,0.54295563,3333.2,3331.5,0.56686855]
[1768753867276,0.93122429,3333.1,3331.5,0.56686855]
[1768753867576,0.54295563,3333.2,3331.5,0.56686855]
[1768753867876,0.93119915,3333.1,3331.5,0.56686855]
[1768753868077,0.54295563,3333.2,3331.5,0.56686855]
[1768753868383,0.93119228,3333.1,3331.5,0.56686855]
[1768753868579,0.54295563,3333.2,3331.5,0.56686855]
[1768753868780,0.93117521,3333.1,3331.5,0.56686855]
[1768753868984,0.54295563,3333.2,3331.5,0.56686855]
[1768753869180,0.93117662,3333.1,3331.5,0.56686855]
[1768753869385,0.54295563,3333.2,3331.5,0.56686855]
[1768753869586,0.9311649,3333.1,3331.5,0.56686855]
[1768753869785,0.54295563,3333.2,3331.5,0.56686855]
[1768753869984,0.93116484,3333.1,3331.5,0.56686855]
[1768753870285,0.54295563,3333.2,3331.5,0.56686855]
[1768753870485,0.93116335,3333.1,3331.5,0.56686855]
[1768753870691,0.54295563,3333.2,3331.5,0.56686855]
[1768753870989,0.93116346,3333.1,3331.5,0.56686855]
[1768753871184,0.54295563,3333.2,3331.5,0.56686855]
[1768753871387,0.54295563,3333.0,3331.4,0.15362737]
[1768753874981,0.54295563,3332.8,3331.4,0.15362737]
[1768753875986,0.54295563,3333.3,3331.5,0.56686855]
[1768753876286,0.93182839,3333.2,3331.5,0.56686855]
[1768753876487,0.93182839,3333.1,3331.5,0.56686855]
[1768753876681,0.93182839,3333.0,3331.5,0.56686855]
[1768753876888,0.93182839,3332.9,3331.5,0.56686855]
[1768753877088,0.93182839,3332.8,3331.5,0.56686855]
[1768753877291,0.54295563,3333.3,3331.5,0.56686855]
[1768753877493,0.93189153,3333.2,3331.5,0.56686855]
[1768753877678,0.93189153,3333.1,3331.5,0.56686855]
[1768753877985,0.93189153,3333.0,3331.5,0.56686855]
[1768753878188,0.93189153,3332.9,3331.5,0.56686855]
[1768753878486,0.93189153,3332.8,3331.5,0.56686855]
[1768753878684,1.76792959,3333.5,3331.4,0.15362737]
[1768753878685,2.16084522,3333.7,3332.0,0.56686855]
[1768753878993,0.93212934,3333.6,3332.0,0.56686855]
[1768753879192,0.93212934,3333.5,3332.0,0.56686855]
[1768753879394,0.54295563,3333.7,3332.0,0.56686855]
[1768753879692,0.54295563,3334.1,3332.2,0.56686855]
[1768753879896,0.93240753,3334.0,3332.2,0.56686855]
[1768753880094,0.93240753,3333.9,3332.2,0.56686855]
[1768753880297,0.93240753,3333.8,3332.2,0.56686855]
[1768753880594,0.93240753,3333.7,3332.2,0.56686855]
[1768753880896,0.54295563,3334.1,3332.2,0.56686855]
[1768753881097,0.93240135,3334.0,3332.2,0.56686855]
[1768753881397,0.93240135,3333.9,3332.2,0.56686855]
[1768753881588,0.93240135,3333.8,3332.2,0.56686855]
[1768753881787,0.93240135,3333.7,3332.2,0.56686855]
[1768753882086,0.54295563,3334.1,3332.2,0.56686855]
[1768753882286,0.9325295,3334.0,3332.2,0.56686855]